bitfinex-derivatives/quotes_ETHF0:USTF0_20250612
["timestamp","ask_amount","ask_price","bid_price","bid_amount"]
[1749739521570,0.72302,2765.6,2765.5,2.73561688]
[1749739521769,23.23002,2765.6,2765.5,2.73561688]
[1749739521972,23.23002,2765.6,2765.5,0.5976]
[1749739523279,23.23002,2765.6,2765.5,2.738477]
[1749739524982,23.23002,2765.6,2765.5,2.140877]
[1749739527377,0.72302,2765.6,2765.5,2.140877]
[1749739527578,29.18802,2765.6,2765.5,2.140877]
[1749739528282,29.18802,2765.6,2765.5,2.748077]
[1749739528984,29.62192,2765.6,2765.5,2.748077]
[1749739530583,1.15692,2765.6,2765.5,0.6072]
[1749739530783,1.15692,2765.6,2765.5,1.33024]
[1749739531083,1.15692,2765.6,2765.5,3.45886649]
[1749739531287,1.15692,2765.6,2765.5,4.75426649]
[1749739531474,1.15692,2765.6,2765.5,1.9026]
[1749739531680,1.15692,2765.6,2765.5,4.75572178]
[1749739532385,1.15692,2765.6,2765.5,4.7556857]
[1749739533386,1.15692,2765.6,2765.5,2.62564]
[1749739534085,1.15692,2765.6,2765.5,1.9026]
[1749739534976,0.4339,2765.6,2765.5,5.83344]
[1749739535181,0.4339,2765.6,2765.5,10.83344]
[1749739535384,1.80716,2766.2,2765.6,0.72302]
[1749739535579,0.72294,2766.0,2765.9,3.57682699]
[1749739535786,0.72287,2766.3,2766.2,0.72282]
[1749739535981,0.72287,2766.3,2766.2,3.57698726]
[1749739536186,0.72287,2766.3,2766.2,2.85416726]
[1749739536384,0.72286,2766.2,2766.1,3.2078]
[1749739537787,0.72291,2766.0,2765.9,0.647]
[1749739539087,0.72288,2766.2,2766.1,0.72289]
[1749739539286,0.72283,2766.3,2766.2,0.72283]
[1749739539794,0.72286,2766.2,2766.1,2.85090119]
[1749739539982,5.01485,2766.4,2766.0,2.85090119]
[1749739539983,0.72289,2766.1,2766.0,2.85090119]
[1749739540490,0.72289,2766.1,2766.0,3.57381119]
[1749739540685,0.72289,2766.1,2766.0,2.85090119]
[1749739540899,0.72289,2766.1,2765.9,1.36993]
[1749739540900,0.72291,2766.0,2765.9,3.49790119]
[1749739541286,0.72291,2766.0,2765.9,2.85090119]
[1749739541487,0.72296,2765.8,2765.7,2.85090119]
[1749739541695,0.72299,2765.7,2765.6,2.85090119]
[1749739542086,0.72299,2765.7,2765.6,3.57392119]
[1749739542290,0.72299,2765.7,2765.6,2.85090119]
[1749739542594,0.72302,2765.6,2765.5,2.85090119]
[1749739542789,0.72301,2765.7,2765.5,2.85090119]
[1749739542992,3.2078,2766.0,2765.5,3.57392119]
[1749739543297,0.72294,2765.9,2765.8,2.13849194]
[1749739544393,0.72296,2765.8,2765.7,2.13849194]
[1749739544592,6.67296,2765.8,2765.7,2.13849194]
[1749739545490,0.0620172,2765.6,2765.3,2.85632134]
[1749739545795,0.72307,2765.4,2765.3,2.85632134]
[1749739547296,0.0620172,2765.6,2765.3,11.06412134]
[1749739547499,0.0620172,2765.6,2765.5,3.57394119]
[1749739547797,0.0620172,2765.6,2765.5,0.72304]
[1749739549894,0.0620172,2765.6,2765.5,9.26355352]
[1749739550496,0.0620172,2765.6,2765.5,9.28886025]
[1749739550698,0.0620172,2765.6,2765.5,5.72304]
[1749739551903,0.7850372,2765.6,2765.5,5.72304]
[1749739552200,0.7850372,2765.6,2765.5,3.56781085]
[1749739552493,0.72304,2765.5,2765.4,4.29087085]
[1749739552698,0.7850572,2765.6,2765.5,0.72304]
[1749739553202,0.72304,2765.5,2765.4,4.29086085]
[1749739554000,0.72304,2765.5,2765.4,5.55456085]
[1749739554601,0.72304,2765.5,2765.4,6.14806085]
[1749739555602,0.72304,2765.5,2765.4,1.8572]
[1749739555894,0.72304,2765.5,2765.4,2.58027]
[1749739556099,0.72304,2765.5,2765.4,0.5935]
[1749739556301,0.72304,2765.5,2765.4,3.44698942]
[1749739556498,0.72307,2765.4,2765.3,2.85890957]
[1749739556698,0.72307,2765.4,2765.3,6.06670957]
[1749739556895,0.72307,2765.4,2765.3,3.93631015]
[1749739557302,0.72307,2765.4,2765.3,5.15091015]
[1749739558000,0.0620172,2765.6,2765.3,5.15091015]
[1749739558200,0.0620172,2765.6,2765.5,3.57757648]
[1749739558401,0.0620172,2765.6,2765.5,0.72304]
[1749739558995,0.0620172,2765.6,2765.3,7.995631]
[1749739559209,0.0620172,2765.6,2765.5,0.72304]
[1749739559905,0.0620172,2765.6,2765.5,5.51195085]
[1749739560411,0.0620172,2765.6,2765.5,1.94414]
[1749739561110,0.72289,2766.1,2766.0,0.72291]
[1749739561403,0.6108,2766.6,2766.1,1.8072]
[1749739561603,0.72818015,2766.7,2766.6,0.72275]
[1749739561807,0.00542015,2766.7,2766.6,3.93055]
[1749739562307,0.00542015,2766.7,2766.6,5.79355]
[1749739562504,0.7226,2767.2,2767.1,0.72259]
[1749739562807,0.72258,2767.3,2767.2,0.72257]
[1749739563308,0.72257,2767.3,2767.2,0.72257]
[1749739563604,1.34296,2767.4,2767.3,0.72257]
[1749739563811,0.72256,2767.4,2767.3,0.72257]
[1749739564005,0.7226,2767.3,2767.2,0.72259]
[1749739564208,3.21322015,2767.5,2767.1,1.2182]
[1749739564511,3.93576015,2767.5,2767.4,0.72255]
[1749739565011,0.72258,2767.3,2767.2,0.72258]
[1749739565200,3.21322015,2767.5,2767.1,1.2182]
[1749739565399,0.72257,2767.4,2767.3,2.1324446]
[1749739566012,0.00542015,2767.5,2767.3,2.1324446]
[1749739566209,0.72794015,2767.5,2767.4,0.72255]
[1749739567112,0.00542015,2767.5,2767.4,0.72255]
[1749739567314,0.72796015,2767.5,2767.3,5.3402446]
[1749739567513,0.72796015,2767.5,2767.3,6.0627946]
[1749739567815,0.00542015,2767.5,2767.4,0.72255]
[1749739568312,0.00542015,2767.5,2767.4,2.51865]
[1749739568516,0.00542015,2767.5,2767.4,5.2433946]
[1749739569109,0.00542015,2767.5,2767.4,3.11095]
[1749739569616,0.72794015,2767.5,2767.4,2.3884]
[1749739569817,0.72794015,2767.5,2767.4,0.6105]
[1749739570116,0.72794015,2767.5,2767.4,2.02930603]
[1749739570512,0.72794015,2767.5,2767.4,2.75185603]
[1749739570817,0.00542015,2767.5,2767.4,2.75185603]
[1749739571114,0.00542015,2767.5,2767.4,1.33305]
[1749739571517,0.00542015,2767.5,2767.4,2.75185603]
[1749739572215,0.72794015,2767.5,2767.4,1.41880603]
[1749739572416,0.72255,2767.4,2767.3,5.34916603]
[1749739572721,0.72796015,2767.5,2767.3,5.34916603]
[1749739572909,0.72796015,2767.5,2767.4,0.72255]
[1749739573115,0.00542015,2767.5,2767.4,0.72255]
[1749739574213,0.00542015,2767.5,2767.3,1.41880603]
[1749739574214,0.72255,2767.4,2767.3,1.41880603]
[1749739574518,0.00542015,2767.5,2767.2,1.41880603]
[1749739574719,0.72795015,2767.5,2767.2,1.41880603]
[1749739574919,0.72795015,2767.5,2767.2,2.14138603]
[1749739575121,0.72795015,2767.5,2767.3,0.72256]
[1749739575315,0.00542015,2767.5,2767.3,0.72256]
[1749739575519,0.72795015,2767.5,2767.4,0.72255]
[1749739575722,0.72257,2767.3,2767.2,1.41880603]
[1749739575920,0.7845872,2767.3,2767.2,1.41880603]
[1749739576516,0.7845872,2767.3,2767.2,2.14140603]
[1749739577418,0.7845872,2767.3,2767.2,1.41880603]
[1749739577620,0.7845872,2767.3,2767.2,0.7226]
[1749739577819,0.7845872,2767.3,2767.2,1.41705261]
[1749739578112,0.7845872,2767.3,2767.0,3.21322015]
[1749739578113,0.0620172,2767.3,2767.0,0.00542015]
[1749739578315,0.7845872,2767.3,2767.2,0.7226]
[1749739578514,0.0620172,2767.3,2767.2,0.7226]
[1749739578911,0.7845872,2767.3,2767.2,0.7226]
[1749739579319,0.0620172,2767.3,2767.2,0.7226]
[1749739579918,0.00542015,2767.5,2767.4,0.72255]
[1749739580116,0.00542015,2767.5,2767.4,5.34770983]
[1749739580421,0.00542015,2767.5,2767.4,6.0627946]
[1749739580820,0.00542015,2767.5,2767.4,3.93035]
[1749739581125,0.00542015,2767.5,2767.4,9.86835]
[1749739581314,0.00542015,2767.5,2767.4,11.10245]
[1749739583423,0.72238,2768.1,2768.0,0.72239]
[1749739583621,0.72238,2768.1,2768.0,3.2078]
[1749739583821,0.637,2768.2,2767.9,0.7224]
[1749739583822,0.72239,2768.0,2767.9,0.7224]
[1749739584322,0.72241,2768.0,2767.9,0.72239]
[1749739584831,0.72242,2768.0,2767.9,0.72239]
[1749739585427,0.72236,2768.1,2768.0,0.72237]
[1749739585630,1.36477015,2768.2,2768.0,0.72237]
[1749739585925,0.64242015,2768.2,2768.0,0.72237]
[1749739586126,1.36477015,2768.2,2768.0,0.72237]
[1749739586329,0.64242015,2768.2,2768.1,0.72236]
[1749739586629,1.36476015,2768.2,2768.1,0.72236]
[1749739587128,0.64242015,2768.2,2768.1,0.72236]
[1749739587324,1.36476015,2768.2,2768.1,0.72236]
[1749739587532,0.64242015,2768.2,2768.1,2.13851207]
[1749739588431,0.64242015,2768.2,2768.1,0.72236]
[1749739588432,1.36476015,2768.2,2768.1,0.72236]
[1749739589020,0.64242015,2768.2,2768.1,3.93016]
[1749739589236,6.54424,2769.2,2768.2,1.80583]
[1749739589427,0.72224,2768.6,2768.5,0.72224]
[1749739589731,0.72223,2768.6,2768.5,0.72224]
[1749739590326,0.72223,2768.6,2768.5,1.42038642]
[1749739590831,0.72228,2768.4,2768.3,0.00542015]
[1749739591026,6.65928,2768.4,2768.3,0.00542015]
[1749739591228,6.65928,2768.4,2768.3,1.42580657]
[1749739591427,7.30418,2768.4,2768.3,1.42580657]
[1749739592938,7.94658,2768.4,2768.3,1.42580657]
[1749739595136,0.72234,2768.2,2768.1,2.12908545]
[1749739595335,0.72236,2768.1,2768.0,2.12908545]
[1749739595536,1.91636,2768.1,2768.0,2.12908545]
[1749739596240,1.91636,2768.1,2767.9,2.12908545]
[1749739596241,0.72239,2768.0,2767.9,2.12908545]
[1749739596439,0.72242,2767.9,2767.8,2.1345056]
[1749739596638,3.93022,2767.9,2767.8,2.1345056]
[1749739597144,10.12422,2767.9,2767.8,0.00542015]
[1749739597341,5.12422,2767.9,2767.8,0.00542015]
[1749739597638,10.12422,2767.9,2767.8,0.00542015]
[1749739598440,0.72249,2767.6,2767.5,2.12908545]
[1749739598643,9.86729,2767.6,2767.5,2.12908545]
[1749739598941,0.72257,2767.3,2767.2,2.12908545]
[1749739600136,3.2078,2767.6,2767.3,0.72255]
[1749739600343,0.72255,2767.4,2767.3,0.72256]
[1749739600543,0.72255,2767.4,2767.3,1.90546]
[1749739600839,0.72255,2767.4,2767.3,1.1829]
[1749739601342,0.7226,2767.2,2767.1,3.46515249]
[1749739601733,0.7226,2767.2,2767.1,0.6152]
[1749739601938,0.72262,2767.1,2767.0,0.00542015]
[1749739603043,0.72262,2767.1,2766.5,9.50597269]
[1749739603044,0.72278,2766.5,2766.0,3.2078]
[1749739603341,5.937,2766.5,2766.0,3.2078]
[1749739603544,5.937,2766.5,2766.1,1.2011]
[1749739603545,0.72286,2766.2,2766.1,1.2011]
[1749739603739,3.7917,2766.8,2766.1,1.2011]
[1749739603935,0.72279,2766.5,2766.3,0.72282]
[1749739604141,0.72278,2766.6,2766.4,0.7228]
[1749739604343,5.938,2766.6,2766.4,0.6226]
[1749739604542,0.72278,2766.5,2766.4,0.6226]
[1749739605743,0.72283,2766.3,2766.2,0.00542015]
[1749739606046,3.7917,2766.8,2766.2,0.00542015]
[1749739606246,0.72276,2766.6,2766.5,0.72278]
[1749739606635,0.72276,2766.6,2766.4,0.72281]
[1749739606841,6.65174,2766.7,2766.5,1.90247]
[1749739607041,0.72276,2766.6,2766.5,1.1797]
[1749739608043,0.6048,2767.0,2766.5,1.1797]
[1749739608244,6.6527,2766.9,2766.7,0.72272]
[1749739608553,0.72271,2766.8,2766.7,1.2009]
[1749739610142,0.72274,2766.7,2766.6,0.6034]
[1749739611041,5.93,2766.9,2766.6,0.6034]
[1749739611349,0.6048,2767.0,2766.6,0.6034]
[1749739611350,3.2078,2767.2,2767.0,0.72264]
[1749739611549,3.93041,2767.2,2767.1,0.5919]
[1749739611756,5.01433,2767.2,2766.8,0.7227]
[1749739611947,0.72269,2766.9,2766.8,0.7227]
[1749739612249,0.72268,2767.0,2766.8,2.0131]
[1749739612450,3.2078,2767.2,2766.9,0.72267]
[1749739612648,0.72264,2767.1,2767.0,1.2904]
[1749739613549,0.72264,2767.1,2766.7,0.5919]
[1749739613550,0.72271,2766.8,2766.7,0.5919]
[1749739613944,0.72271,2766.8,2766.7,2.48414]
[1749739614346,0.72271,2766.9,2766.7,2.48414]
[1749739614740,1.80661,2767.1,2766.7,1.7614]
[1749739614946,0.72271,2766.8,2766.7,0.5919]
[1749739615346,0.72271,2766.8,2766.7,1.31464]
[1749739615647,0.72271,2766.8,2766.7,0.5919]
[1749739615853,5.93,2767.0,2766.7,1.31464]
[1749739616046,0.72271,2766.9,2766.8,0.72271]
[1749739616351,0.72271,2766.8,2766.7,1.31462]
[1749739616952,0.72271,2766.8,2766.7,0.5919]
[1749739617149,6.80683,2766.8,2766.3,3.2078]
[1749739617455,0.7228,2766.5,2766.3,4.57563]
[1749739617749,0.0620172,2766.7,2766.3,6.85769]
[1749739617949,0.0620172,2766.7,2766.5,0.72279]
[1749739618143,0.0620172,2766.7,2766.6,1.1978]
[1749739618144,0.7847572,2766.7,2766.6,1.1978]
[1749739618349,0.72277,2766.6,2766.5,0.72279]
[1749739619555,0.7838172,2766.7,2766.4,1.1978]
[1749739619756,0.72278,2766.6,2766.5,0.72279]
[1749739620654,0.72279,2766.5,2766.4,1.1978]
[1749739623356,0.72282,2766.4,2766.3,5.98853595]
[1749739623557,0.72282,2766.4,2766.3,3.8528]
[1749739623854,0.72282,2766.4,2766.3,5.99015624]
[1749739624456,0.72282,2766.4,2766.3,2.13735624]
[1749739624652,0.72285,2766.3,2766.2,0.00542015]
[1749739625952,0.72285,2766.3,2766.2,0.72827015]
[1749739626147,0.72285,2766.3,2766.2,0.00542015]
[1749739626358,0.72285,2766.3,2766.2,1.23912015]
[1749739626766,6.65384,2766.4,2766.3,0.72284]
[1749739626959,6.65384,2766.4,2766.3,2.86146321]
[1749739627157,6.65384,2766.4,2766.3,1.95654]
[1749739627663,6.65384,2766.4,2766.3,1.2337]
[1749739627959,6.65384,2766.4,2766.3,3.3733504]
[1749739628157,6.65384,2766.4,2766.3,1.2337]
[1749739631466,6.65384,2766.4,2766.2,0.00542015]
[1749739631467,0.72285,2766.3,2766.2,0.00542015]
[1749739632360,0.72285,2766.3,2766.2,1.20802015]
[1749739633261,0.72285,2766.3,2766.2,4.04724081]
[1749739633767,0.72285,2766.3,2766.2,2.84464081]
[1749739633966,0.72285,2766.3,2766.2,0.00542015]
[1749739634261,1.33095,2766.3,2766.2,0.00542015]
[1749739634560,1.33095,2766.3,2766.2,2.14791688]
[1749739635358,4.53875,2766.3,2766.2,0.00542015]
[1749739635554,5.71375,2766.3,2766.2,0.00542015]
[1749739637168,4.53875,2766.3,2766.2,0.00542015]
[1749739638969,5.74725,2766.3,2766.2,0.00542015]
[1749739640966,4.6007672,2766.3,2766.2,0.00542015]
[1749739642676,3.9926672,2766.3,2766.2,0.00542015]
[1749739642863,32.3676672,2766.3,2766.2,0.00542015]
[1749739643172,6.7108672,2766.3,2766.2,2.14791688]
[1749739643372,29.1588672,2766.3,2766.2,3.36511688]
[1749739643572,29.1588672,2766.3,2766.2,4.73338688]
[1749739643872,29.1588672,2766.3,2766.2,4.01051688]
[1749739644070,22.5100172,2766.3,2766.2,2.59089015]
[1749739644373,0.722,2766.4,2766.3,0.72285]
[1749739644673,0.722,2766.4,2766.3,1.98555]
[1749739644872,0.722,2766.4,2766.3,10.55452269]
[1749739648477,1.44482,2766.4,2766.3,4.11777355]
[1749739648970,1.44482,2766.4,2766.2,5.35560237]
[1749739648971,0.7848672,2766.3,2766.2,5.35560237]
[1749739649572,0.7848672,2766.3,2766.2,6.63770237]
[1749739649776,0.0620172,2766.3,2766.2,5.21819015]
[1749739650075,0.7848672,2766.3,2766.2,4.49532015]
[1749739652875,0.7848672,2766.3,2766.2,3.21322015]
[1749739653172,0.7848672,2766.3,2766.2,0.00542015]
[1749739654375,3.9926672,2766.3,2766.2,0.00542015]
[1749739654571,4.6043672,2766.3,2766.2,0.00542015]
[1749739655674,1.3965672,2766.3,2766.2,0.00542015]
[1749739655978,0.7848672,2766.3,2766.2,0.00542015]
[1749739656375,6.7098672,2766.3,2766.2,0.00542015]
[1749739659482,29.1518672,2766.3,2766.2,0.00542015]
[1749739659879,0.0620172,2766.3,2766.2,0.72829015]
[1749739660081,0.7848672,2766.3,2766.2,0.00542015]
[1749739660280,0.7848672,2766.3,2766.2,0.72829015]
[1749739660683,0.0620172,2766.3,2766.2,0.72829015]
[1749739660982,0.7848672,2766.3,2766.2,1.23132015]
[1749739661385,0.0620172,2766.3,2766.2,1.95419015]
[1749739662488,0.7848672,2766.3,2766.2,1.95419015]
[1749739662787,0.0620172,2766.3,2766.2,1.95419015]
[1749739662989,0.7848672,2766.3,2766.2,1.95419015]
[1749739663788,0.7848672,2766.3,2766.2,1.23132015]
[1749739664186,0.0620172,2766.3,2766.2,1.95419015]
[1749739666096,0.0620172,2766.3,2766.2,4.8092637]
[1749739667193,0.722,2766.4,2766.3,0.72285]
[1749739667498,0.72269,2766.9,2766.8,0.72271]
[1749739668196,0.72269,2766.9,2766.8,2.55121]
[1749739668694,0.72268,2767.0,2766.9,0.72267]
[1749739668998,0.72268,2767.0,2766.9,2.13986073]
[1749739669301,50.217,2767.2,2766.9,2.13986073]
[1749739669601,0.72269,2766.9,2766.8,2.13986073]
[1749739670494,2.6655072,2766.9,2766.8,2.13986073]
[1749739671297,2.6655072,2766.9,2766.8,2.86257073]
[1749739671498,1.4084072,2766.9,2766.8,2.13986073]
[1749739672004,1.4084072,2766.9,2766.8,2.86257073]
[1749739672198,1.4084072,2766.9,2766.8,2.13986073]
[1749739672404,1.4084072,2766.9,2766.8,0.72271]
[1749739672597,0.72272,2766.8,2766.7,0.72273]
[1749739672798,28.355,2766.8,2766.7,0.72273]
[1749739674103,29.07771,2766.8,2766.7,0.72273]
[1749739674598,28.355,2766.8,2766.7,0.72273]
[1749739675505,30.1618,2766.8,2766.3,3.2078]
[1749739675706,0.72279,2766.5,2766.4,2.14154774]
[1749739675907,22.433,2766.5,2766.4,2.86436774]
[1749739676100,22.433,2766.5,2766.4,2.01362]
[1749739676400,23.15579,2766.5,2766.4,2.01362]
[1749739676705,23.15579,2766.5,2766.4,1.2908]
[1749739677506,0.72282,2766.4,2766.3,3.8272]
[1749739678707,0.72282,2766.4,2766.3,4.55005]
[1749739678902,0.72282,2766.4,2766.3,5.79015]
[1749739679702,0.72282,2766.4,2766.3,5.0673]
[1749739680805,0.72281,2766.5,2766.4,0.72282]
[1749739681109,0.72274,2766.7,2766.6,0.72276]
[1749739681709,0.72274,2766.7,2766.6,1.97535]
[1749739682109,0.72274,2766.7,2766.6,1.97537]
[1749739682404,0.72274,2766.7,2766.6,1.2526]
[1749739682609,0.72279,2766.5,2766.4,2.85361644]
[1749739682909,0.72285,2766.3,2766.2,2.85903659]
[1749739683305,0.72285,2766.3,2766.2,0.00542015]
[1749739683906,0.72285,2766.3,2766.2,2.85903659]
[1749739684110,0.72285,2766.3,2766.2,3.58190659]
[1749739684308,0.72285,2766.3,2766.2,2.85903659]
[1749739685508,0.72285,2766.3,2766.2,0.00542015]
[1749739685810,0.7848672,2766.3,2766.2,0.00542015]
[1749739686206,0.7848672,2766.3,2766.2,2.14876226]
[1749739687511,0.7848672,2766.3,2766.2,0.00542015]
[1749739691312,0.7848672,2766.3,2766.2,2.14849081]
[1749739691716,2.6355672,2766.3,2766.2,2.14849081]
[1749739691911,1.3830672,2766.3,2766.2,2.14849081]
[1749739693816,2.6068672,2766.3,2766.2,2.14849081]
[1749739694017,2.6068672,2766.3,2766.2,0.00542015]
[1749739697217,0.72292,2766.0,2765.9,2.14307066]
[1749739697418,23.15092,2766.0,2765.9,2.14307066]
[1749739697613,0.72295,2765.9,2765.8,2.14307066]
[1749739697810,1.80738,2765.9,2765.5,2.14307066]
[1749739698012,0.72303,2765.6,2765.5,2.14307066]
[1749739698217,0.72305,2765.5,2765.4,2.73867066]
[1749739699020,4.21977504,2765.5,2765.4,2.14307066]
[1749739699324,0.72319,2765.0,2764.9,0.5956]
[1749739699517,23.15019,2765.0,2764.9,1.7859]
[1749739700217,0.72324,2764.8,2764.7,0.6479]
[1749739700423,0.99744,2764.8,2764.7,0.6479]
[1749739701022,23.42544,2764.8,2764.7,0.6479]
[1749739701219,0.2742,2764.8,2764.7,2.56146]
[1749739701520,22.428,2765.2,2765.1,0.72314]
[1749739701717,22.428,2765.2,2765.1,3.93094]
[1749739702319,0.72306,2765.5,2765.1,3.2078]
[1749739702519,0.0620172,2765.6,2765.5,0.72305]
[1749739702726,0.0620172,2765.6,2765.5,2.65005]
[1749739703023,0.0620172,2765.6,2765.5,1.927]
[1749739703223,0.0620172,2765.6,2765.5,2.65005]
[1749739703623,0.0620172,2765.6,2765.5,5.50366644]
[1749739703822,0.0620172,2765.6,2765.5,2.65005]
[1749739704229,0.0620172,2765.6,2765.5,5.50366644]
[1749739704920,0.7850472,2765.6,2765.5,5.50366644]
[1749739705123,0.0620172,2765.6,2765.5,5.50366644]
[1749739706829,0.7850472,2765.6,2765.5,5.50366644]
[1749739707530,0.0620172,2765.6,2765.5,5.50366644]
[1749739709218,0.00542015,2766.0,2765.5,6.927]
[1749739709419,0.00542015,2766.0,2765.9,3.93075]
[1749739709730,0.00542015,2766.0,2765.9,6.78371528]
[1749739710329,0.72834015,2766.0,2765.9,3.93075]
[1749739710525,0.72834015,2766.0,2765.9,4.4065]
[1749739710730,0.00542015,2766.0,2765.9,5.12945]
[1749739712233,0.00542015,2766.0,2765.9,7.98241528]
[1749739712533,0.00542015,2766.0,2765.9,5.12945]
[1749739713431,0.00542015,2766.0,2765.9,7.98241528]
[1749739715133,0.06743735,2766.0,2765.9,7.98241528]
[1749739715835,0.06743735,2766.0,2765.9,5.12945]
[1749739716931,0.06743735,2766.0,2765.9,7.98264526]
[1749739718233,0.79035735,2766.0,2765.9,7.98264526]
[1749739718430,0.06743735,2766.0,2765.9,7.98264526]
[1749739718830,0.79035735,2766.0,2765.9,4.05189526]
[1749739719030,0.06743735,2766.0,2765.9,0.72295]
[1749739719230,0.79035735,2766.0,2765.9,0.72295]
[1749739719430,0.06743735,2766.0,2765.9,0.72295]
[1749739719942,0.72295,2765.9,2765.8,3.57614526]
[1749739720229,0.79037735,2766.0,2765.9,0.72295]
[1749739721238,0.06743735,2766.0,2765.9,3.93075]
[1749739721438,0.06743735,2766.0,2765.9,6.78394526]
[1749739721640,0.06743735,2766.0,2765.9,8.07154526]
[1749739721938,0.06743735,2766.0,2765.9,5.21835]
[1749739726439,1.80688,2766.7,2765.9,5.21835]
[1749739726440,9.7552,2766.9,2766.7,0.72271]
[1749739726640,0.72277,2766.7,2766.6,0.72275]
[1749739726841,0.72277,2766.7,2766.6,2.85816706]
[1749739727038,0.72277,2766.7,2766.6,0.72275]
[1749739727233,0.72277,2766.7,2766.6,2.8569728]
[1749739729147,0.72277,2766.7,2766.6,0.72275]
[1749739729453,0.72277,2766.7,2766.6,2.85710364]
[1749739730148,0.72277,2766.7,2766.6,0.72275]
[1749739730946,0.72274,2766.8,2766.7,0.72271]
[1749739732755,0.72277,2766.6,2766.5,6.77779275]
[1749739732945,0.72277,2766.6,2766.5,3.93057]
[1749739733141,0.72277,2766.6,2766.5,0.72277]
[1749739733754,0.72276,2766.7,2766.6,0.72276]
[1749739734259,0.72278,2766.6,2766.5,0.72278]
[1749739735252,0.72276,2766.7,2766.5,0.72278]
[1749739735549,13.44416015,2766.9,2766.5,0.72278]
[1749739735754,0.72271,2766.8,2766.7,2.13874104]
[1749739737048,1.99001,2766.8,2766.7,2.13874104]
[1749739737257,1.99001,2766.8,2766.7,2.13944066]
[1749739737751,1.99001,2766.8,2766.4,0.00542015]
[1749739737752,1.2673,2766.8,2766.4,0.00542015]
[1749739738055,1.99001,2766.8,2766.7,2.13922406]
[1749739739447,7.89301,2766.8,2766.7,2.13922406]
[1749739740654,7.89301,2766.8,2766.4,2.8526429]
[1749739740655,0.72274,2766.7,2766.6,2.13922406]
[1749739740952,1.98654,2766.7,2766.6,2.13922406]
[1749739744253,0.72274,2766.7,2766.6,2.13922406]
[1749739744857,0.72279,2766.5,2766.4,3.5754529]
[1749739745356,9.72812015,2766.9,2766.4,2.8526429]
[1749739745558,0.00542015,2766.9,2766.8,0.72271]
[1749739745755,3.9291,2767.5,2767.4,0.72256]
[1749739746062,4.65164,2767.5,2767.3,0.72256]
[1749739746250,4.65164,2767.5,2767.3,3.5728089]
[1749739746448,0.7213,2767.5,2767.4,1.98816]
[1749739746854,0.00542015,2767.7,2767.4,1.98816]
[1749739747061,0.72252,2767.6,2767.4,1.2656]
[1749739747265,0.00542015,2767.7,2767.4,1.2656]
[1749739747557,0.72251,2767.6,2767.5,2.85721497]
[1749739747768,0.72251,2767.6,2767.5,2.13469497]
[1749739748156,0.00542015,2767.7,2767.4,1.8854]
[1749739748361,0.72790015,2767.7,2767.6,2.13499753]
[1749739748564,0.72251,2767.6,2767.5,2.13499753]
[1749739750860,0.72791015,2767.7,2767.5,2.85751753]
[1749739751163,0.72251,2767.6,2767.5,3.37119753]
[1749739752261,0.72251,2767.6,2767.5,4.09372753]
[1749739752461,0.72251,2767.6,2767.5,3.37119753]
[1749739753267,0.72251,2767.6,2767.5,2.13499753]
[1749739753467,0.72253,2767.5,2767.4,6.68515753]
[1749739753767,0.72253,2767.5,2767.4,7.15170368]
[1749739754864,0.72253,2767.5,2767.4,7.87426368]
[1749739755563,0.72253,2767.5,2767.4,7.15170368]
[1749739756467,0.72253,2767.5,2767.4,7.87426368]
[1749739757167,0.72253,2767.6,2767.5,0.72252]
[1749739757362,0.72251,2767.6,2767.5,1.92812]
[1749739757764,0.72251,2767.6,2767.5,4.06162368]
[1749739758268,0.72791015,2767.7,2767.5,4.06161368]
[1749739758463,0.00542015,2767.7,2767.6,2.85601368]
[1749739758660,0.1118,2768.2,2768.1,0.72238]
[1749739758865,5.902,2768.9,2768.1,3.93018]
[1749739759067,2.41038,2769.0,2768.5,2.85270194]
[1749739759265,0.72222,2768.7,2768.6,0.6284]
[1749739760270,0.00542015,2768.9,2768.6,0.6284]
[1749739760470,0.00542015,2768.9,2768.8,0.72219]
[1749739760674,0.72759015,2768.9,2768.7,1.98431]
[1749739760867,0.72759015,2768.9,2768.8,1.2621]
[1749739761167,0.72222,2768.7,2768.6,0.6284]
[1749739761571,0.72221,2768.8,2768.6,2.61274]
[1749739761967,0.72221,2768.8,2768.7,1.2621]
[1749739762366,0.00542015,2768.9,2768.7,1.2621]
[1749739762667,0.00542015,2768.9,2768.7,1.98432]
[1749739762861,0.72760015,2768.9,2768.7,1.2621]
[1749739763068,0.00542015,2768.9,2768.7,1.98431]
[1749739763270,0.00542015,2768.9,2768.7,1.98432]
[1749739763470,0.00542015,2768.9,2768.7,1.2621]
[1749739763670,0.00542015,2768.9,2768.7,1.98431]
[1749739763873,0.72760015,2768.9,2768.7,1.98431]
[1749739764666,0.00542015,2768.9,2768.7,1.2621]
[1749739764871,0.72760015,2768.9,2768.7,1.98431]
[1749739765772,0.72760015,2768.9,2768.8,0.72219]
[1749739765971,0.72760015,2768.9,2768.7,1.9843]
[1749739766374,0.00542015,2768.9,2768.8,0.72219]
[1749739766571,0.00542015,2768.9,2768.8,1.97699]
[1749739767272,0.72759015,2768.9,2768.8,1.97699]
[1749739767474,0.72759015,2768.9,2768.8,1.2548]
[1749739767674,1.80549,2768.8,2768.4,3.21322015]
[1749739767975,0.72227,2768.5,2768.4,0.00542015]
[1749739768170,23.10227,2768.5,2768.4,0.00542015]
[1749739774681,0.72245,2767.8,2767.7,3.2078]
[1749739774975,28.268,2767.9,2767.8,0.72245]
[1749739775172,3.8441,2768.3,2767.8,1.2344]
[1749739775373,28.9903,2768.4,2768.1,0.72235]
[1749739775574,0.72236,2768.2,2768.0,0.00542015]
[1749739775776,0.72236,2768.2,2768.0,0.72782015]
[1749739775978,0.72234,2768.3,2768.0,0.72782015]
[1749739776175,0.72235,2768.2,2768.0,0.00542015]
[1749739776774,0.72235,2768.2,2768.0,0.72782015]
[1749739777278,0.72234,2768.3,2768.0,0.72782015]
[1749739777775,0.72235,2768.2,2768.0,0.72782015]
[1749739778275,0.72234,2768.3,2768.1,0.72237]
[1749739778476,28.99031,2768.4,2768.0,0.00542015]